fUSD/lending_fUSD_20250221
["ID","MTS","AMOUNT","RATE_DAILY","PERIOD"]
[353933748,1740154254446,-500.0,0.00013698,2]
[353933749,1740154254464,-505.99037501,0.00013698,2]
[353933750,1740154254480,-500.0,0.00013698,2]
[353933751,1740154254495,-500.0,0.00013698,2]
[353933752,1740154254511,-500.0,0.00013698,2]
[353933753,1740154254527,-500.0,0.00013698,2]
[353933754,1740154254538,-500.0,0.00013698,2]
[353933755,1740154254551,-504.42756106,0.00013698,2]
[353933756,1740154254561,-500.0,0.00013698,2]
[353933757,1740154254570,-500.0,0.00013698,2]
[353933758,1740154254749,-500.0,0.00013698,2]
[353933759,1740154254759,-500.0,0.00013698,2]
[353933760,1740154254769,-500.0,0.00013698,2]
[353933761,1740154254778,-500.0,0.00013698,2]
[353933762,1740154254787,-500.0,0.00013698,2]
[353933763,1740154254799,-2001.27,0.00013698,2]
[353933764,1740154254809,-500.0,0.00013698,2]
[353933765,1740154254818,-500.0,0.00013698,2]
[353933766,1740154254828,-500.0,0.00013698,2]
[353933767,1740154254838,-500.0,0.00013698,2]
[353933768,1740154254847,-500.0,0.00013698,2]
[353933769,1740154254857,-500.0,0.00013698,2]
[353933770,1740154254866,-500.0,0.00013698,2]
[353933771,1740154254876,-500.0,0.00013698,2]
[353933772,1740154254885,-500.0,0.00013698,2]
[353933773,1740154254895,-500.0,0.00013698,2]
[353933774,1740154254904,-500.0,0.00013698,2]
[353933775,1740154254914,-500.0,0.00013698,2]
[353933776,1740154254924,-377.61760858,0.00013698,2]
[353933777,1740154254933,-74.90216915,0.00013698,2]
[353933778,1740154254952,-425.09783085,0.00013698,2]
[353933779,1740154254961,-153.87118774,0.00013698,2]
[353933780,1740154254972,-346.12881226,0.00013698,2]
[353933781,1740154254981,-500.0,0.00013698,2]
[353933782,1740154254990,-500.0,0.00013698,2]
[353933783,1740154254999,-61.36971477,0.00013698,2]
[353933784,1740154255444,-392.29490377,0.00013698,2]
[353933785,1740154255463,-46.33538146,0.00013698,2]
[353933786,1740154255474,-500.0,0.00013698,2]
[353933787,1740154255483,-500.0,0.00013698,2]
[353933788,1740154255492,-503.29473007,0.00013698,2]
[353933789,1740154255502,-500.0,0.00013698,2]
[353933790,1740154255511,-500.0,0.00013698,2]
[353933791,1740154255521,-500.0,0.00013698,2]
[353933792,1740154255530,-500.0,0.00013698,2]
[353933793,1740154255543,-500.0,0.00013698,2]
[353933794,1740154255554,-500.0,0.00013698,2]
[353933795,1740154255563,-501.29654235,0.00013698,2]
[353933796,1740154255573,-500.0,0.00013698,2]
[353933797,1740154255582,-500.0,0.00013698,2]
[353933798,1740154255592,-500.0,0.00013698,2]
[353933799,1740154255601,-500.0,0.00013698,2]
[353933800,1740154255611,-500.0,0.00013698,2]
[353933801,1740154255620,-532.97303296,0.00013698,2]
[353933802,1740154255629,-500.0,0.00013698,2]
[353933803,1740154255638,-500.0,0.00013698,2]
[353933804,1740154255648,-502.65595971,0.00013698,2]
[353933805,1740154255658,-502.4106599,0.00013698,2]
[353933806,1740154255667,-505.84239009,0.00013698,2]
[353933807,1740154255677,-500.0,0.00013698,2]
[353933808,1740154255686,-500.0,0.00013698,2]
[353933809,1740154255695,-500.0,0.00013698,2]
[353933810,1740154255705,-500.0,0.00013698,2]
[353933811,1740154255714,-500.0,0.00013698,2]
[353933812,1740154255724,-500.0,0.00013698,2]
[353933813,1740154255734,-500.0,0.00013698,2]
[353933814,1740154255743,-500.0,0.00013698,2]
[353933815,1740154255753,-503.91596042,0.00013698,2]
[353933816,1740154255763,-500.0,0.00013698,2]
[353933817,1740154255773,-500.0,0.00013698,2]
[353933818,1740154255782,-500.0,0.00013698,2]
[353933819,1740154255791,-500.0,0.00013698,2]
[353933820,1740154255801,-645.07,0.00013698,2]
[353933821,1740154255810,-500.0,0.00013698,2]
[353933822,1740154255819,-500.0,0.00013698,2]
[353933823,1740154255829,-500.0,0.00013698,2]
[353933824,1740154255840,-500.0,0.00013698,2]
[353933825,1740154255849,-500.0,0.00013698,2]
[353933826,1740154255858,-500.0,0.00013698,2]
[353933827,1740154255868,-506.31509712,0.00013698,2]
[353933828,1740154255877,-500.0,0.00013698,2]
[353933829,1740154255886,-522.62193585,0.00013698,2]
[353933830,1740154255896,-208.58176597,0.00013698,2]
[353933831,1740154255905,-500.0,0.00013698,2]
[353933832,1740154255914,-503.90324184,0.00013698,2]
[353933833,1740154255923,-500.0,0.00013698,2]
[353933834,1740154255933,-500.0,0.00013698,2]
[353933835,1740154255942,-500.0,0.00013698,2]
[353933836,1740154255951,-396.44053148,0.00013698,2]
[353933837,1740154255966,-108.47430086,0.00013698,2]
[353933838,1740154255975,-500.0,0.00013698,2]
[353933839,1740154255985,-500.0,0.00013698,2]
[353933840,1740154255995,-500.0,0.00013698,2]
[353933841,1740154256005,-500.0,0.00013698,2]
[353933842,1740154256016,-500.0,0.00013698,2]
[353933843,1740154256027,-525.3976657,0.00013698,2]
[353933844,1740154256036,-500.0,0.00013698,2]
[353933845,1740154256047,-500.0,0.00013698,2]
[353933846,1740154256057,-500.0,0.00013698,2]
[353933847,1740154256067,-500.0,0.00013698,2]
[353933848,1740154256077,-428.84832227,0.00013698,2]
[353933849,1740154256107,-71.15167773,0.00013698,2]
[353933850,1740154256117,-220.54820394,0.00013698,2]
[353933851,1740154256515,-300.0,0.00013408,2]
[353933852,1740154256649,-389.63124367,0.00013408,2]
[353933853,1740154256666,-1822.78396786,0.00013408,2]
[353933854,1740154256677,-2807.83314005,0.00013408,2]
[353933855,1740154256687,-343.45179606,0.00013698,2]
[353933856,1740154256697,-500.0,0.00013698,2]
[353933857,1740154256706,-847.56,0.00013698,2]
[353933858,1740154256715,-859.59,0.00013698,2]
[353933859,1740154256726,-500.0,0.00013698,2]
[353933860,1740154256735,-518.1373565,0.00013698,2]
[353933861,1740154256744,-1137.82,0.00013698,2]
[353933862,1740154256753,-500.0,0.00013698,2]
[353933863,1740154256762,-500.0,0.00013698,2]
[353933864,1740154256771,-500.0,0.00013698,2]
[353933865,1740154256780,-680.69,0.00013698,2]
[353933866,1740154256792,-324.84803464,0.00013698,2]
[353933867,1740154256804,-292.48196536,0.00013698,2]
[353933868,1740154256813,-426.75803462,0.00013698,2]
[353933869,1740154256825,-73.24196538,0.00013698,2]
[353933870,1740154256834,-500.0,0.00013698,2]
[353933871,1740154256843,-101.79098743,0.00013698,2]
[353933872,1740154256854,-401.2848954,0.00013698,2]
[353933873,1740154256864,-500.0,0.00013698,2]
[353933874,1740154256874,-29.25045861,0.00013698,2]
[353933875,1740154256885,-470.74954139,0.00013698,2]
[353933876,1740154256895,-500.0,0.00013698,2]
[353933877,1740154256904,-500.0,0.00013698,2]
[353933878,1740154256913,-500.0,0.00013698,2]
[353933879,1740154256922,-500.0,0.00013698,2]
[353933880,1740154256931,-99.66939129,0.00013698,2]
[353933882,1740154521529,-150.0,0.00011458,2]
[353933883,1740154560579,-150.0,0.000118,2]
[353933884,1740154652399,670.0,9.874e-05,2]
[353933885,1740154652424,93.77,9.874e-05,2]
[353933886,1740154913166,550.0,0.0001,2]
[353933887,1740155108922,9206.23,0.0001,2]
[353933916,1740155432328,-180.04141742,9.999e-05,2]
[353933917,1740155432338,-181.97737782,9.999e-05,2]
[353933918,1740155432348,-500.0,9.999e-05,2]
[353933919,1740155432358,-500.0,9.999e-05,2]
[353933920,1740155432367,-552.71986263,9.999e-05,2]
[353933921,1740155432377,-7093.86583286,0.0001,2]
[353933922,1740155432388,-315.3782395,0.0001,2]
[353933923,1740155432407,-679.94930539,0.0001,2]
[353933924,1740155432419,-722.23935065,0.0001,2]
[353933925,1740155432439,-8270.85573516,0.0001,2]
[353933926,1740155432652,-1054.27994001,0.0001,2]
[353933927,1740155432706,-12175.37516826,0.0001,2]
[353933928,1740155432717,-13043.43657164,0.0001,2]
[353933929,1740155432729,-1166.16607264,0.0001,2]
[353933931,1740155438173,-10593.90772,0.0001,2]
[353934071,1740155440278,-527.200411,0.0001,2]
[353934072,1740155440290,-3195.06415769,0.0001,2]
[353934073,1740155440386,-2960.96613443,0.0001,2]
[353934074,1740155440602,-365117.1250005,0.0001,2]
[353934075,1740155440612,-86260.29430534,0.0001,2]
[353934076,1740155440622,-12482.16905879,0.0001,2]
[353934077,1740155440631,-310.28841902,0.0001,2]
[353934078,1740155440640,-163.39509003,0.000109,2]
[353934079,1740155440650,-368.15013546,0.000109,2]
[353934080,1740155440659,-6513.97649959,0.00011099,2]
[353934081,1740155440668,-6513.97649959,0.00011099,2]
[353934082,1740155440677,-6513.97649959,0.00011099,2]
[353934083,1740155440686,-6513.97649959,0.00011167,2]
[353934084,1740155440695,-6513.97649959,0.00011589,2]
[353934085,1740155440703,-1000.0,0.00011669,2]
[353934086,1740155440712,-198.7,0.00011671,2]
[353934087,1740155440721,-250.0,0.00011694,2]
[353934088,1740155440730,-329.29,0.00011694,2]
[353934089,1740155440740,-16208.77,0.00011695,2]
[353934090,1740155440750,-155.54,0.00011772,2]
[353934091,1740155440760,-955.8,0.00011795,2]
[353934092,1740155440769,-200.0,0.00011859,2]
[353934093,1740155440780,-1469.89,0.00011866,2]
[353934094,1740155440794,-157.87,0.00011872,2]
[353934095,1740155440804,-508.45,0.00011894,2]
[353934096,1740155440813,-600.0,0.00012,2]
[353934097,1740155440823,-6513.97649959,0.00012011,2]
[353934098,1740155440832,-166.21,0.0001211,2]
[353934099,1740155440841,-763.77,0.00012138,2]
[353934100,1740155440851,-501.07,0.00012236,2]
[353934101,1740155440863,-501.97,0.0001224,2]
[353934103,1740155440874,-507.65,0.00012245,2]
[353934105,1740155440883,-492.96,0.00012252,2]
[353934107,1740155440892,-490.16,0.00012259,2]
[353934109,1740155440901,-503.98,0.0001227,2]
[353934111,1740155440911,-509.01,0.00012287,2]
[353934112,1740155440920,-160.4979763,0.000123,2]
[353934113,1740155440931,-500.57,0.00012304,2]
[353934114,1740155440940,-150.0,0.00012311,2]
[353934115,1740155440950,-498.29,0.00012332,2]
[353934116,1740155440960,-508.03,0.00012376,2]
[353934117,1740155440970,-150.0,0.00012394,2]
[353934118,1740155440979,-159.21955644,0.00012403,2]
[353934119,1740155440988,-150.0,0.00012403,2]
[353934120,1740155440997,-220.0,0.00012407,2]
[353934121,1740155441007,-6513.97649959,0.00012433,2]
[353934122,1740155441016,-502.45,0.00012445,2]
[353934123,1740155441025,-150.0,0.00012458,2]
[353934124,1740155441035,-1000.0,0.00012642,2]
[353934125,1740155441047,-150.0,0.00012786,2]
[353934126,1740155441057,-150.0,0.00012812,2]
[353934127,1740155441066,-150.0,0.00012814,2]
[353934128,1740155441075,-6513.97649959,0.00012856,2]
[353934129,1740155441084,-700.0,0.000129,4]
[353934130,1740155441093,-150.0,0.0001291,2]
[353934131,1740155441103,-300.0,0.0001291,2]
[353934132,1740155441112,-987.27,0.0001291,2]
[353934133,1740155441122,-878.58,0.0001291,2]
[353934134,1740155441131,-300.0,0.0001291,2]
[353934135,1740155441141,-150.0,0.0001291,2]
[353934136,1740155441150,-439.29,0.0001291,2]
[353934137,1740155441159,-150.0,0.0001291,2]
[353934138,1740155441168,-150.0,0.0001291,2]
[353934139,1740155441177,-987.27,0.0001291,2]
[353934140,1740155441187,-150.0,0.0001291,2]
[353934141,1740155441197,-150.0,0.0001291,2]
[353934142,1740155441206,-150.0,0.0001291,2]
[353934143,1740155441215,-150.0,0.0001291,2]
[353934144,1740155441225,-439.29,0.0001291,2]
[353934145,1740155441234,-985.46,0.0001291,2]
[353934146,1740155441243,-150.0,0.0001291,2]
[353934147,1740155441252,-150.0,0.0001291,2]
[353934148,1740155441261,-150.0,0.0001291,2]
[353934149,1740155441271,-439.29,0.0001291,2]
[353934150,1740155441280,-150.0,0.0001291,2]
[353934151,1740155441291,-150.0,0.0001291,2]
[353934152,1740155441300,-439.29,0.0001291,2]
[353934153,1740155441310,-439.29,0.0001291,2]
[353934154,1740155441319,-150.0,0.0001291,2]
[353934155,1740155441328,-300.0,0.0001291,2]
[353934156,1740155441337,-202.5,0.0001291,2]
[353934157,1740155441346,-242.0,0.00012955,2]
[353934158,1740155441355,-1000.0,0.00012963,2]
[353934159,1740155441364,-1000.0,0.00012963,2]
[353934160,1740155441373,-1000.0,0.00013011,2]
[353934161,1740155441383,-1000.0,0.0001302,2]
[353934162,1740155441392,-150.0,0.00013027,2]
[353934163,1740155441401,-500.0,0.00013044,2]
[353934164,1740155441410,-150.0,0.00013056,2]
[353934165,1740155441419,-150.0,0.00013092,2]
[353934166,1740155441428,-1000.0,0.00013111,2]
[353934167,1740155441437,-1000.0,0.00013128,2]
[353934168,1740155441446,-150.0,0.00013157,2]
[353934169,1740155441456,-150.0,0.00013161,2]
[353934170,1740155441465,-6513.97649959,0.00013278,2]
[353934171,1740155441474,-1000.0,0.00013306,2]
[353934172,1740155441483,-150.0,0.00013319,2]
[353934173,1740155441493,-3959.57442588,0.00013324,2]
[353934174,1740155441501,-2747.5,0.00013324,2]
[353934175,1740155441511,-3599.831,0.00013324,2]
[353934176,1740155441520,-7500.0,0.00013324,2]
[353934177,1740155441530,-150.0,0.00013338,2]
[353934178,1740155441541,-3959.57442582,0.00013366,2]
[353934179,1740155441550,-78590.25883599,0.000134,2]
[353934180,1740155441559,-181.70065477,0.00013407,2]
[353934181,1740155441570,-3959.57442582,0.00013408,2]
[353934182,1740155441580,-182.46260651,0.00013414,2]
[353934183,1740155441589,-150.0,0.00013415,2]
[353934184,1740155441599,-479.08244943,0.00013424,3]
[353934185,1740155441608,-529657.24122496,0.00013424,3]
[353934186,1740155441617,-500.0,0.00013424,2]
[353934187,1740155441627,-500.0,0.00013424,2]
[353934188,1740155441637,-500.0,0.00013424,2]
[353934189,1740155441647,-500.0,0.00013424,2]
[353934190,1740155441656,-500.0,0.00013424,2]
[353934191,1740155441665,-644.8,0.00013424,2]
[353934192,1740155441674,-500.0,0.00013424,2]
[353934193,1740155441684,-500.0,0.00013424,2]
[353934194,1740155441692,-500.0,0.00013424,2]
[353934195,1740155441702,-500.0,0.00013424,2]
[353934196,1740155441711,-500.0,0.00013424,2]
[353934197,1740155441720,-500.0,0.00013424,2]
[353934198,1740155441730,-500.0,0.00013424,2]
[353934199,1740155441740,-500.0,0.00013424,2]
[353934200,1740155441749,-500.0,0.00013424,2]
[353934201,1740155441759,-500.0,0.00013424,2]
[353934202,1740155441769,-500.0,0.00013424,2]
[353934203,1740155441778,-500.0,0.00013424,2]
[353934204,1740155441789,-500.0,0.00013424,2]
[353934205,1740155441801,-500.0,0.00013424,2]
[353934206,1740155441810,-500.0,0.00013424,2]
[353934207,1740155441819,-500.0,0.00013424,2]
[353934208,1740155441828,-500.0,0.00013424,2]
[353934209,1740155441837,-500.0,0.00013424,2]
[353934210,1740155441847,-304.44721054,0.00013424,2]
[353934211,1740155441858,-500.0,0.00013424,2]
[353934212,1740155441869,-500.0,0.00013424,2]
[353934213,1740155441879,-500.0,0.00013424,2]
[353934214,1740155441889,-500.0,0.00013424,2]
[353934215,1740155441899,-500.0,0.00013424,2]
[353934216,1740155441908,-500.0,0.00013424,2]
[353934217,1740155441917,-500.0,0.00013424,2]
[353934218,1740155441927,-500.0,0.00013424,2]
[353934219,1740155441936,-500.0,0.00013424,2]
[353934220,1740155441946,-500.0,0.00013424,2]
[353934221,1740155442069,-500.0,0.00013424,2]
[353934222,1740155442079,-500.0,0.00013424,2]
[353934223,1740155442088,-500.0,0.00013424,2]
[353934224,1740155442098,-500.0,0.00013424,2]
[353934225,1740155442107,-500.0,0.00013424,2]
[353934226,1740155442117,-500.0,0.00013424,2]
[353934227,1740155442126,-500.0,0.00013424,2]
[353934228,1740155442135,-612.66601784,0.00013424,2]
[353934229,1740155442147,-500.0,0.00013424,2]
[353934230,1740155442156,-500.0,0.00013424,2]
[353934231,1740155442165,-500.0,0.00013424,2]
[353934232,1740155442175,-500.0,0.00013424,2]
[353934233,1740155442184,-500.0,0.00013424,2]
[353934234,1740155442194,-500.0,0.00013424,2]
[353934235,1740155442203,-500.0,0.00013424,2]
[353934236,1740155442212,-500.0,0.00013424,2]
[353934237,1740155442221,-500.0,0.00013424,2]
[353934238,1740155442230,-500.0,0.00013424,2]
[353934239,1740155442239,-500.0,0.00013424,2]
[353934240,1740155442248,-500.0,0.00013424,2]
[353934241,1740155442259,-500.0,0.00013424,2]
[353934242,1740155442268,-500.0,0.00013424,2]
[353934243,1740155442277,-500.0,0.00013424,2]
[353934244,1740155442286,-500.0,0.00013424,2]
[353934245,1740155442298,-500.0,0.00013424,2]
[353934246,1740155442307,-500.0,0.00013424,2]
[353934247,1740155442317,-500.0,0.00013424,2]
[353934248,1740155442327,-500.0,0.00013424,2]
[353934249,1740155442337,-500.0,0.00013424,2]
[353934250,1740155442346,-500.0,0.00013424,2]
[353934251,1740155442355,-500.0,0.00013424,2]
[353934252,1740155442365,-500.0,0.00013424,2]
[353934253,1740155442374,-500.0,0.00013424,2]
[353934254,1740155442385,-500.0,0.00013424,2]
[353934255,1740155442395,-500.0,0.00013424,2]
[353934256,1740155442404,-500.0,0.00013424,2]
[353934257,1740155442414,-500.0,0.00013424,2]
[353934258,1740155442423,-500.0,0.00013424,2]
[353934259,1740155442432,-500.0,0.00013424,2]
[353934260,1740155442442,-500.0,0.00013424,2]
[353934261,1740155442451,-500.0,0.00013424,2]
[353934262,1740155442460,-500.0,0.00013424,2]
[353934263,1740155442469,-288.78541358,0.00013424,2]
[353934264,1740155442479,-500.0,0.00013424,2]
[353934265,1740155442488,-500.0,0.00013424,2]
[353934266,1740155442498,-500.0,0.00013424,2]
[353934267,1740155442507,-500.0,0.00013424,2]
[353934268,1740155442516,-500.0,0.00013424,2]
[353934269,1740155442526,-500.0,0.00013424,2]
[353934270,1740155442535,-500.0,0.00013424,2]
[353934271,1740155442550,-500.0,0.00013424,2]
[353934272,1740155442559,-500.0,0.00013424,2]
[353934273,1740155442568,-500.0,0.00013424,2]
[353934274,1740155442577,-500.0,0.00013424,2]
[353934275,1740155442586,-500.0,0.00013424,2]
[353934276,1740155442595,-500.0,0.00013424,2]
[353934277,1740155442605,-500.0,0.00013424,2]
[353934278,1740155442615,-500.0,0.00013424,2]
[353934279,1740155442624,-500.0,0.00013424,2]
[353934280,1740155442633,-500.0,0.00013424,2]
[353934281,1740155442642,-500.0,0.00013424,2]
[353934282,1740155442651,-1319.880578,0.00013424,2]
[353934283,1740155442660,-500.0,0.00013424,2]
[353934284,1740155442670,-500.0,0.00013424,2]
[353934285,1740155442679,-500.0,0.00013424,2]
[353934286,1740155442688,-500.0,0.00013424,2]
[353934287,1740155442697,-1396.06,0.00013424,2]
[353934288,1740155442706,-170.557751,0.00013424,2]
[353934289,1740155442715,-500.0,0.00013424,2]
[353934290,1740155442724,-500.0,0.00013424,2]
[353934291,1740155442734,-158.119444,0.00013424,2]
[353934292,1740155442743,-500.0,0.00013424,2]
[353934293,1740155442752,-500.0,0.00013424,2]
[353934294,1740155442762,-500.0,0.00013424,2]
[353934295,1740155442771,-500.0,0.00013424,2]
[353934296,1740155442783,-500.0,0.00013424,2]
[353934297,1740155442798,-500.0,0.00013424,2]
[353934298,1740155442807,-500.0,0.00013424,2]
[353934299,1740155442816,-500.0,0.00013424,2]
[353934300,1740155442826,-500.0,0.00013424,2]
[353934301,1740155442836,-500.0,0.00013424,2]
[353934302,1740155442844,-1188.184896,0.00013424,2]
[353934303,1740155442853,-500.0,0.00013424,2]
[353934304,1740155442863,-500.0,0.00013424,2]
[353934305,1740155442873,-500.0,0.00013424,2]
[353934306,1740155442882,-500.0,0.00013424,2]
[353934307,1740155442891,-500.0,0.00013424,2]
[353934308,1740155442900,-501.64284717,0.00013424,2]
[353934309,1740155442911,-500.0,0.00013424,2]
[353934310,1740155442920,-500.0,0.00013424,2]
[353934311,1740155442929,-1001.72,0.00013424,2]
[353934312,1740155442938,-1001.72,0.00013424,2]
[353934313,1740155442947,-506.64528138,0.00013424,2]
[353934314,1740155442956,-1001.72,0.00013424,2]
[353934315,1740155442966,-500.0,0.00013424,2]
[353934316,1740155442975,-500.0,0.00013424,2]
[353934317,1740155442984,-500.0,0.00013424,2]
[353934318,1740155442993,-503.11079531,0.00013424,2]
[353934319,1740155443002,-500.0,0.00013424,2]
[353934320,1740155443011,-500.0,0.00013424,2]
[353934321,1740155443020,-501.82494726,0.00013424,2]
[353934322,1740155443029,-908.71,0.00013424,2]
[353934323,1740155443039,-500.0,0.00013424,2]
[353934324,1740155443051,-500.0,0.00013424,2]
[353934325,1740155443060,-444.84804732,0.00013424,2]
[353934326,1740155443070,-500.0,0.00013424,2]
[353934327,1740155443079,-1270.23,0.00013424,2]
[353934328,1740155443089,-243.90381176,0.00013424,2]
[353934329,1740155443099,-500.0,0.00013424,2]
[353934330,1740155443109,-500.0,0.00013424,2]
[353934331,1740155443119,-502.77499125,0.00013424,2]
[353934332,1740155443129,-500.0,0.00013424,2]
[353934333,1740155443139,-579.8,0.00013424,2]
[353934334,1740155443148,-434.4689343,0.00013424,2]
[353934335,1740155443157,-500.0,0.00013424,2]
[353934336,1740155443167,-500.0,0.00013424,2]
[353934337,1740155443177,-503.83110792,0.00013424,2]
[353934338,1740155443187,-774.22,0.00013424,2]
[353934339,1740155443196,-500.0,0.00013424,2]
[353934340,1740155443206,-302.67622597,0.00013424,2]
[353934341,1740155443215,-500.0,0.00013424,2]
[353934342,1740155443225,-500.0,0.00013424,2]
[353934343,1740155443234,-500.0,0.00013424,2]
[353934345,1740155443247,-5000.0,0.00013424,2]
[353934347,1740155443257,-502.75820427,0.00013424,2]
[353934348,1740155443267,-500.0,0.00013424,2]
[353934350,1740155443276,-500.0,0.00013424,2]
[353934351,1740155443286,-500.0,0.00013424,2]
[353934354,1740155443297,-500.0,0.00013424,2]
[353934356,1740155443307,-500.0,0.00013424,2]
[353934357,1740155443316,-502.09801966,0.00013424,2]
[353934359,1740155443326,-500.0,0.00013424,2]
[353934361,1740155443335,-500.0,0.00013424,2]
[353934362,1740155443345,-500.0,0.00013424,2]
[353934363,1740155443354,-500.0,0.00013424,2]
[353934364,1740155443364,-705.84,0.00013424,2]
[353934365,1740155443373,-500.0,0.00013424,2]
[353934367,1740155443382,-500.0,0.00013424,2]
[353934369,1740155443391,-500.0,0.00013424,2]
[353934371,1740155443400,-500.0,0.00013424,2]
[353934373,1740155443410,-500.0,0.00013424,2]
[353934374,1740155443419,-462.93075962,0.00013424,2]
[353934377,1740155443429,-500.0,0.00013424,2]
[353934379,1740155443439,-500.0,0.00013424,2]
[353934381,1740155443448,-505.90228415,0.00013424,2]
[353934383,1740155443457,-751.69,0.00013424,2]
[353934384,1740155443466,-500.0,0.00013424,2]
[353934386,1740155443475,-500.0,0.00013424,2]
[353934388,1740155443484,-592.58,0.00013424,2]
[353934390,1740155443493,-268.66871402,0.00013424,2]
[353934392,1740155443502,-500.0,0.00013424,2]
[353934394,1740155443511,-500.0,0.00013424,2]
[353934396,1740155443520,-500.0,0.00013424,2]
[353934398,1740155443529,-533.915922,0.00013424,2]
[353934400,1740155443539,-500.0,0.00013424,2]
[353934402,1740155443550,-500.0,0.00013424,2]
[353934404,1740155443559,-502.73131951,0.00013424,2]
[353934405,1740155443568,-550.33,0.00013424,2]
[353934406,1740155443578,-879.23,0.00013424,2]
[353934407,1740155443587,-503.86702993,0.00013424,2]
[353934408,1740155443596,-500.0,0.00013424,2]
[353934409,1740155443606,-848.57,0.00013424,2]
[353934410,1740155443615,-500.0,0.00013424,2]
[353934411,1740155443624,-500.0,0.00013424,2]
[353934412,1740155443633,-1047.26,0.00013424,2]
[353934413,1740155443743,-500.0,0.00013424,2]
[353934414,1740155443753,-500.0,0.00013424,2]
[353934415,1740155443763,-501.74194259,0.00013424,2]
[353934416,1740155443772,-500.0,0.00013424,2]
[353934417,1740155443783,-500.0,0.00013424,2]
[353934418,1740155443795,-500.0,0.00013424,2]
[353934419,1740155443804,-500.0,0.00013424,2]
[353934420,1740155443813,-656.11,0.00013424,2]
[353934421,1740155443823,-583.44,0.00013424,2]
[353934422,1740155443832,-512.32,0.00013424,2]
[353934423,1740155443842,-549.01,0.00013424,2]
[353934424,1740155443851,-500.0,0.00013424,2]
[353934425,1740155443860,-500.0,0.00013424,2]
[353934427,1740155443871,-500.0,0.00013424,2]
[353934428,1740155443882,-500.0,0.00013424,2]
[353934429,1740155443892,-500.0,0.00013424,2]
[353934430,1740155443901,-624.76,0.00013424,2]
[353934431,1740155443910,-500.0,0.00013424,2]
[353934432,1740155443919,-500.0,0.00013424,2]
[353934433,1740155443928,-571.8208771,0.00013424,2]
[353934434,1740155443937,-501.07471443,0.00013424,2]
[353934435,1740155443947,-500.0,0.00013424,2]
[353934436,1740155443955,-532.55,0.00013424,2]
[353934437,1740155443964,-505.53613587,0.00013424,2]
[353934438,1740155443974,-500.0,0.00013424,2]
[353934439,1740155443984,-500.0,0.00013424,2]
[353934440,1740155443994,-500.0,0.00013424,2]
[353934441,1740155444003,-575.67,0.00013424,2]
[353934442,1740155444013,-500.0,0.00013424,2]
[353934443,1740155444023,-500.0,0.00013424,2]
[353934444,1740155444032,-500.0,0.00013424,2]
[353934445,1740155444042,-500.0,0.00013424,2]
[353934446,1740155444053,-500.0,0.00013424,2]
[353934447,1740155444062,-567.03,0.00013424,2]
[353934448,1740155444071,-790.31,0.00013424,2]
[353934449,1740155444083,-500.0,0.00013424,2]